Cogmind - Beta 9 @@@ ROGUE MODE // 2019.10.23 @ 12:53:49 Player: Hilbert Result: Destroyed by Y-45 Defender with Heavy Assault Rifle Performance ------------- Evolutions (2) 1000 Regions Visited (4) 800 Robots Destroyed (14) 70 Value Destroyed (392) 392 Prototype IDs (1) 20 Alien Tech Used (0) 0 Bonus (0) 0 TOTAL SCORE: 2282 Bonus ------- None Cogmind --------- Core Integrity 0/550 Matter 34/300 Energy 130/150 System Corruption 0% Temperature Cool (9) Location -8/Storage Parts ------- Power (1) Micro Nuclear Core Propulsion (6) Light Treads Light Treads Aluminum Leg Carbon-fiber Leg Utility (2) Weapon (2) Inventory (4) Micro Nuclear Core Flak Gun Peak State ------------ Power Micro Nuclear Core Propulsion (None) Utility (None) Weapon Flak Gun Advanced EMP Blaster Inventory Micro Nuclear Core Flak Gun [Rating: 12] Favorites ----------- Power Micro Nuclear Core Engine Ion Engine Power Core Micro Nuclear Core Propulsion Aluminum Leg Treads Light Treads Leg Aluminum Leg Wheel Compact Wheel Flight Unit VTOL Module Utility None Weapon Grenade Launcher Ballistic Gun Flak Gun Launcher Grenade Launcher Build | -11 -10 -9 -8 -8 ------- Run | Scr Mat Mat Mat Sto Slots Evolved 4 | . . 2 2 . Power . | . . . . . Propulsion 4 | . . 2 2 . Utility . | . . . . . Weapon . | . . . . . Parts Attached 23 | 3 3 4 5 8 Power 4 | 1 1 . 2 . Engine 3 | 1 1 . 1 . Core 1 | . . . 1 . Reactor . | . . . . . Propulsion 13 | 2 . 2 3 6 Treads 6 | . . 2 2 2 Leg 5 | 2 . . . 3 Wheel 1 | . . . . 1 Hover . | . . . . . Flight 1 | . . . 1 . Utility . | . . . . . Device . | . . . . . Storage . | . . . . . Processor . | . . . . . Hackware . | . . . . . Protection . | . . . . . Artifact . | . . . . . Weapon 6 | . 2 2 . 2 Energy Gun . | . . . . . Energy Cannon . | . . . . . Ballistic Gun 1 | . . . . 1 Ballistic Cannon . | . . . . . Launcher 5 | . 2 2 . 1 Special Weapon . | . . . . . Impact Weapon . | . . . . . Slashing Weapon . | . . . . . Piercing Weapon . | . . . . . Special Melee Weapon . | . . . . . Unidentified Prototypes 1 | . . . . 1 Parts Lost 14 | . . 2 8 4 Power 2 | . . 1 1 . Propulsion 9 | . . . 7 2 Utility . | . . . . . Weapon 3 | . . 1 . 2 Highest Loss Streak 8 | . . 1 8 4 Average Slot Usage (%) 36 | . 43 57 26 20 Engine 5 | . 14 7 . . Core 2 | . . . . 9 Treads 8 | . . 22 11 . Leg 14 | . 28 22 9 1 Wheel 1 | . . . . 5 Flight 1 | . . . 4 . Launcher 3 | . 1 6 . 4 Naked Turns 27 | . . . 27 . Heaviest Build 16 | 5 5 6 6 16 Greatest Support 43 | 20 3 3 43 25 Greatest Overweight (x) 5 | 1 1 1 1 5 Average Overweight (x) . | . . . . . Largest Inventory Capacity 4 | 4 4 4 4 4 Average Capacity 4 | 4 4 4 4 4 Most Carried 4 | 3 4 3 4 4 Average Carried 2 | 2 3 2 2 3 Final Capacity 4 | . . . . 4 Final Carried 2 | . . . . 2 Class Distribution -------------------- 100% | Mutant Dominant Class ---------------- Mutant | -10/Materials Mutant | -9/Materials Mutant | -8/Materials Mutant | -8/Storage Resources | -11 -10 -9 -8 -8 ----------- Run | Scr Mat Mat Mat Sto Matter Collected 340 | 230 17 23 . 70 Remotely . | . . . . . Salvage Created 392 | . 56 67 . 269 Parts 26 | . 7 6 . 13 Haulers Intercepted . | . . . . . Recyclers Shooed 2 | . . . . 2 Parts Field Recycled . | . . . . . Retrieved Matter . | . . . . . Parts Self-Destructed . | . . . . . Prevented . | . . . . . Kills | -11 -10 -9 -8 -8 ------- Run | Scr Mat Mat Mat Sto Combat Hostiles Destroyed 10 | . 2 5 . 3 AOE 9 | . 2 5 . 2 Classes Destroyed 6 | . 2 3 . 1 Worker 2 | . . 1 . 1 Builder 1 | . 1 . . . Recycler 1 | . . . . 1 Swarmer 3 | . . 3 . . Grunt 5 | . 2 1 . 2 Sentry 2 | . . 1 . 1 Best Kill Streak 4 | . 3 3 . 4 Combat Bots Only 3 | . 2 3 . 3 Max Kills in Single Turn 1 | . 1 1 . 1 Gunslinging . | . . . . . Exploded 1 | . 1 1 . 1 Melee . | . . . . . Uniques/NPCs Destroyed . | . . . . . Combat | -11 -10 -9 -8 -8 -------- Run | Scr Mat Mat Mat Sto Damage Taken 1999 | . 46 413 967 573 Core 639 | . . 78 358 203 Absorbed by Shields . | . . . . . Core Remaining (%) 93 | 100 100 80 . . Volleys Fired 31 | . 5 17 . 9 Largest 2 | . 1 1 . 2 Hottest 64 | . 30 30 . 64 Shots Fired 33 | . 5 17 . 11 Gun 2 | . . . . 2 Cannon . | . . . . . Launcher 31 | . 5 17 . 9 Special . | . . . . . Kinetic 2 | . . . . 2 Thermal . | . . . . . Explosive 22 | . 5 17 . . Electromagnetic 9 | . . . . 9 Robot Hit Streak 15 | . 2 13 . 15 Robot Miss Streak 2 | . 1 1 . 2 Penetration Max . | . . . . . Secondary Targets . | . . . . . Shots Hit Robots 24 | . 2 14 . 8 Core Hits 25 | . 6 12 . 7 Critical Hits . | . . . . . Critical Kills . | . . . . . Critical Parts Destroyed . | . . . . . Melee Attacks . | . . . . . Impact . | . . . . . Slashing . | . . . . . Piercing . | . . . . . Sneak Attacks . | . . . . . Combat Hostiles . | . . . . . Follow-up Attacks . | . . . . . Damage Inflicted 1386 | . 222 489 9 666 Guns 30 | . . . . 30 Cannons . | . . . . . Explosions 1342 | . 222 489 . 631 Melee . | . . . . . Ramming 14 | . . . 9 5 Kinetic 30 | . . . . 30 Thermal 53 | . . . . 53 Explosive 711 | . 222 489 . . Electromagnetic 578 | . . . . 578 Impact . | . . . . . Slashing . | . . . . . Piercing . | . . . . . Highest Corruption . | . . . . . Average Corruption . | . . . . . Corruption Purged . | . . . . . Overload Shots . | . . . . . Overflow Damage 52 | . 7 10 . 35 Projectiles . | . . . . . Explosions 52 | . 7 10 . 35 Melee . | . . . . . Knockbacks . | . . . . . Impact . | . . . . . Kinetic . | . . . . . Secondary . | . . . . . Self-Inflicted Damage 119 | . . . 3 116 Shots 6 | . . . . 6 Rammed 8 | . . . 6 2 Targets Rammed 8 | . . . 6 2 Kicked . | . . . . . Crushed . | . . . . . Highest Temperature 39 | . 1 16 5 39 Average Temperature 9 | . 1 8 2 14 Received Heat Transfer 846 | . 24 120 486 216 Siege Activations . | . . . . . Robots Corrupted 1 | . . . . 1 Combat Hostiles 1 | . . . . 1 Parts Fried 3 | . . . . 3 Impact Corruptions . | . . . . . Robots Melted . | . . . . . Combat Hostiles . | . . . . . Parts Melted . | . . . . . Heat Transferred 50 | . . . . 50 Parts Sabotaged . | . . . . . Parts Stolen . | . . . . . Parts Stripped . | . . . . . Power Chain Reactions 1 | . . . . 1 Missiles Intercepted . | . . . . . Alert | -11 -10 -9 -8 -8 ------- Run | Scr Mat Mat Mat Sto Peak Influence 352 | . 85 285 135 352 Average Influence 83 | . 30 164 28 135 Maximum Alert Level 1 | . . 1 . 1 Low Security (%) 80 | . . . . . Level 1 19 | . . . . . Level 2 . | . . . . . Level 3 . | . . . . . Level 4 . | . . . . . Level 5 . | . . . . . High Security . | . . . . . Max Security . | . . . . . Squads Dispatched 7 | . 2 1 3 1 Investigation 1 | . . . 1 . Extermination . | . . . . . Reinforcement 6 | . 2 1 2 1 Assault . | . . . . . Garrison . | . . . . . Intercept . | . . . . . Construction Impeded 1 | . . . . 1 Haulers Reinforced . | . . . . . Stealth | -11 -10 -9 -8 -8 --------- Run | Scr Mat Mat Mat Sto Distress Signals 3 | . . 1 1 1 Communications Jammed . | . . . . . Distress Signals . | . . . . . Times Spotted 40 | . 4 12 14 10 Peak Tracking Total 13 | . 2 5 13 6 Tactical Retreats 2 | . . . 1 1 Traps | -11 -10 -9 -8 -8 ------- Run | Scr Mat Mat Mat Sto Traps Triggered . | . . . . . Indirectly . | . . . . . Trap Hack Attempts . | . . . . . Triggered . | . . . . . Disarmed . | . . . . . Reprogrammed . | . . . . . Reused . | . . . . . Traps Extracted . | . . . . . Installed . | . . . . . Triggered . | . . . . . Machines | -11 -10 -9 -8 -8 ---------- Run | Scr Mat Mat Mat Sto Machines Disabled 6 | . 1 3 . 2 Max in Single Turn 2 | . 1 2 . 1 Machines Sabotaged . | . . . . . Garrisons Compromised . | . . . . . Overloaded Fab Kills . | . . . . . Fab Network Shutdowns . | . . . . . Hacking | -11 -10 -9 -8 -8 --------- Run | Scr Mat Mat Mat Sto Machines Accessed 3 | . . . 2 1 Terminals 3 | . . . 2 1 Fabricators . | . . . . . Repair Stations . | . . . . . Recycling Units . | . . . . . Scanalyzers . | . . . . . Garrison Access . | . . . . . Total Hacks 6 | . . . 5 1 Successful 3 | . . . 2 1 Failed 3 | . . . 3 . Catastrophic . | . . . . . Database Lockouts . | . . . . . Manual 5 | . . . 5 . Terminals 6 | . . . 5 1 Fabricators . | . . . . . Repair Stations . | . . . . . Recycling Units . | . . . . . Scanalyzers . | . . . . . Garrison Access . | . . . . . Terminal Hacks 2 | . . . 1 1 Open Door 1 | . . . . 1 Unreport Threat 1 | . . . 1 . Fabricator Hacks . | . . . . . Repair Station Hacks . | . . . . . Recycling Unit Hacks . | . . . . . Scanalyzer . | . . . . . Garrison Access Hacks . | . . . . . Unauthorized Hacks 4 | . . . 4 . Terminals 1 | . . . 1 . Botnet 1 | . . . 1 . Fabricators . | . . . . . Repair Stations . | . . . . . Recycling Units . | . . . . . Scanalyzers . | . . . . . Garrison Access . | . . . . . Data Cores Recovered . | . . . . . Used . | . . . . . Hacking Detections 2 | . . . 2 . Full Trace Events 1 | . . . 1 . Feedback Events . | . . . . . Feedback Blocked . | . . . . . Robot Schematics Acquired . | . . . . . Robots Built . | . . . . . Matter . | . . . . . Time . | . . . . . Total Robot Build Rating . | . . . . . Part Schematics Acquired . | . . . . . Parts Built . | . . . . . Matter . | . . . . . Time . | . . . . . Total Part Build Rating . | . . . . . Parts Repaired . | . . . . . Time . | . . . . . Parts Recycled . | . . . . . Recycled Matter . | . . . . . Retrieved Matter . | . . . . . Retrieved Components . | . . . . . Parts Scanalyzed . | . . . . . Part Schematics Acquired . | . . . . . Parts Damaged . | . . . . . Bothacking | -11 -10 -9 -8 -8 ------------ Run | Scr Mat Mat Mat Sto Used RIF Installer . | . . . . . Robots Hacked . | . . . . . Non-combat . | . . . . . Combat . | . . . . . Robot Hacks Applied . | . . . . . Relay Couplers Released . | . . . . . Robots Rewired . | . . . . . Allies Hacked . | . . . . . Hacks Repelled . | . . . . . Allies | -11 -10 -9 -8 -8 -------- Run | Scr Mat Mat Mat Sto Total Allies . | . . . . . Largest Group . | . . . . . Highest-Rated Group . | . . . . . Highest-Rated Ally . | . . . . . Total Orders . | . . . . . Ally Attacks . | . . . . . Total Damage . | . . . . . Kills . | . . . . . Allies Corrupted . | . . . . . Allies Melted . | . . . . . Intel | -11 -10 -9 -8 -8 ------- Run | Scr Mat Mat Mat Sto Robot Analysis Total . | . . . . . Derelict Logs Recovered . | . . . . . Drone Launches . | . . . . . Drone Recoveries . | . . . . . Exploration | -11 -10 -9 -8 -8 ------------- Run | Scr Mat Mat Mat Sto Turns Passed 526 | 43 113 117 120 133 Spaces Moved 507 | 36 119 128 129 95 Core 423 | 23 119 128 126 27 Treads 4 | . . . 3 1 Legs 18 | 13 . . . 5 Wheels 62 | . . . . 62 Hover . | . . . . . Flight . | . . . . . Fastest Speed 50 | 50 50 50 50 100 Average Speed 73 | 98 81 53 56 104 Slowest Speed 300 | 120 100 100 160 300 Overloaded Moves . | . . . . . Propulsion Burnouts . | . . . . . Robots Hopped . | . . . . . Cave-ins Triggered . | . . . . . Exploration Rate (%) 15 | 3 23 22 15 15 Regions Visited 4 Branch Regions 1 Pre-discovered Areas . | . . . . . Known Exits Taken . | . . . . . Unknown Exits Taken 4 | 1 1 1 1 . Scrap Searched . | . . . . . Spaces Dug 4 | . 4 . . . Terrain Destroyed 86 | . 24 56 . 6 Melee . | . . . . . Projectile . | . . . . . AOE 86 | . 24 56 . 6 Actions | -11 -10 -9 -8 -8 --------- Run | Scr Mat Mat Mat Sto Total 617 | 41 130 159 171 116 Wait 37 | . . 8 29 . Move 503 | 35 118 127 128 95 Hop . | . . . . . Pick Up 10 | 3 1 2 3 1 Fast Attach 12 | 3 . . 3 6 Attach 10 | . 2 4 2 2 Detach 3 | . 2 1 . . Swap 1 | . 1 . . . Drop 2 | . 1 . . 1 Fire 31 | . 5 17 . 9 Melee . | . . . . . Ram 3 | . . . 1 2 Kick . | . . . . . Crush 5 | . . . 5 . Escape Stasis . | . . . . . Rewire . | . . . . . Trap . | . . . . . Miscellaneous . | . . . . . Route ------- -11/Scrapyard -10/Materials -9/Materials -8/Materials -8/Storage History --------- Turn | Location | Event 23 | -11/Scrapyard | Discovered new exit (range 15) 44 | -11/Scrapyard | Entered Materials 127 | -10/Materials | Discovered new exit (range 11) 157 | -10/Materials | Entered another Materials area 157 | -9/Materials | Evolved 2 slots: Propulsion x2 253 | -9/Materials | Discovered new exit (range 16) 274 | -9/Materials | Entered another Materials area 274 | -8/Materials | Evolved 2 slots: Propulsion x2 310 | -8/Materials | Build established: Mutant 362 | -8/Materials | Core integrity fell below 50% 374 | -8/Materials | Discovered new exit (range 15) 384 | -8/Materials | Lost 8 parts (1p7n) 394 | -8/Materials | Entered Storage 508 | -8/Storage | Core integrity fell below 20% 527 | -8/Storage | Destroyed by Y-45 Defender with Heavy Assault Rifle Last Messages --------------- 00505_ Heat Sink fried. 00505_ Y-45 Defender destroyed. 00505_ Chain reaction triggered in Imp. Ion Engine. 00505_ Destroyed Particle Gun. 00507_ R-06 Scavenger destroyed. 00508_ Flak Gun destroyed. 00509_ G-47 Trooper misfires. 00511_ Adv. EMP Blaster destroyed. 00513_ Acquired Carbon-fiber Leg. 00515_ Acquired 52 matter. 00519_ Acquired Aluminum Leg. 00520_ U-05 Engineer lays Concrete. 00521_ Acquired Lgt. Treads. 00521_ U-05 Engineer builds a Door. 00522_ K-01 Serf collects debris. 00523_ Aluminum Leg destroyed. 00524_ Acquired Aluminum Leg. 00525_ U-05 Engineer builds a Wall. 00527_ K-01 Serf collects debris. 00527_ Acquired Lgt. Treads. Map ----- +----------------------------------------------------+ | ?????????????????????????????????????????? | | ?????????????????????????????????????????? | | ?????????????????????????????????????????? | | ?????????????????????????????????????????? | | ?????????????????????????????????????????? | | ?????????????????????????????????????????? | | ?????????????????????????????????????????? | | ?????????????????????????????????????????? | | ?????????????????????????????????????????? | | ?????????????????????????????????????????? | | ?????????????????????????????????????????? | | ?????????????????????????????????????????? | | ?????????????????????????????????????????? | | ?????????????????????????????????????????? | | ?????????????????????????????????????????? | | ?????????????????????????????????????????? | | ?????????????????????????????????????????? | | ?????????????????????????????????????????? | | ?????????????????????????????????????????? | | ?????#???????????????????????????????????? | | ????? #??????????????????????????????????? | | ????? #????????#####????####????????????? | | ?????" "????????# # #??? #####????????? | | ????"" Y???###### ### ?????????? | | # """ "???# [krau u ???????????? | | # #???# " @ %###??????????????????? | | # """ ##### "=[=[ ##???????????????????? | | # """ # # "/=!!!!#????????????????????? | | # """ # " *%* #????????????????????? | | # # # g ! #????????????????????? | | # """ # # Y #????????????????????? | | # """ # #????????????????????? | | # """ # # #????????????????????? | | # # ##########????????????????????? | | ######## #########?????????????????????? | | # #* # # ]]#?????????????????????? | | # """" # # ]]#?????????????????????? | | # """" # # ]]#?????????????????????? | | # """" # " * #?????????????????????? | | # """" # ## # ]]#?????????????????????? | | # # #### ]]]#?????????????????????? | | # """" " #??######?????????????????????? | | # """" # #?????????????????????????????? | | # """" # #?????????????????????????????? | | # """" # #?????????????????????????????? | | # # #?????????????????????????????? | | # # #?????????????????????????????? | | # # #?????????????????????????????? | | ######## #?????????????????????????????? | | ???????# #?????????????????????????????? | +----------------------------------------------------+ Best States ------------- Heat Dissipation 31 Energy Generation 15 Energy Capacity 250 Matter Stores 300 Matter Capacity 300 Sight Range 16 Terrain Scan Density 10 Evasion (%) 50 Recoil Reduction 2 Item Schematics ----------------- None Robot Schematics ------------------ None Fabricated ------------ Nothing Alien Tech Used ----------------- None Achievements -------------- None Challenges ------------ None Game ------ Seed MassCentriumSword Manual? 0 Play Time 00:12:07 Cumulative 15.2 hours Start 2019.10.23 @ 12:43:55 End 2019.10.23 @ 12:53:49 Sessions 1 Manual Loads 0 Difficulty Rogue Special Mode None Game No. 35 Rogue 35 Adventurer 0 Explorer 0 Win Type - Total 0 Types 0/0/0/0/0/0/0 Lore% 9 Gallery% 24 Achievement% 17 Wizard Run 0 Options --------- ASCII 0 Keyboard 1 Movement Vi Keybinds 0 Fullscreen 1 Font 18/SmallcapsGlow Map View 76x50 Tactical HUD 1 Map Filters NONE Filters NONE Steam 1 RUN: 11bf8172-7945-442d-b40c-e49960c29408